Cogmind - Beta 12 @@@ ROGUE MODE // 2023.09.24 @ 19:40:37 Player: most_lamentable Result: Destroyed by HH-H66(z) with Zionite Laser-S Performance ------------- Evolutions (1) 500 Regions Visited (6) 1200 Robots Destroyed (65) 325 Value Destroyed (1753) 1753 Prototype IDs (2) 40 Alien Tech Used (0) 0 Bonus (1394) 1394 TOTAL SCORE: 5212 Bonus ------- High Alert Combat Kills 70 Follower Combat Kills 25 Met Imprinter 300 Was Imprinted 300 Destroyed Z-Imprinter 1000 Friendly Fire -301 Cogmind --------- Core Integrity 0/400 Matter 195/300 Energy 99/100 System Corruption 0% Temperature Cool (9) Movement Walking (125) Location -7/Deep Caves Parts ------- > --- POWER (1) -------- (None) > --- PROPULSION (3) --- Aluminum Leg Improved Titanium Leg > --- UTILITY (3) ------ Medium Storage Unit ECM Suite > --- WEAPON (2) ------- Mini Grenade Launcher > --- INVENTORY (10) --- VTOL Module VTOL Module VTOL Module Authchip [R/Combat] Authchip [Device] Authchip [Weapon] Improved Medium Laser Datajack CR-A16's Pointy Stick Peak State ------------ > --- POWER ------------ Light Deuterium Engine > --- PROPULSION ------- Aluminum Leg Aluminum Leg Improved Titanium Leg > --- UTILITY ---------- Medium Storage Unit ECM Suite Hacking Drone Bay > --- WEAPON ----------- Improved Medium Laser Mini Grenade Launcher > --- INVENTORY -------- Light Deuterium Engine VTOL Module VTOL Module VTOL Module Propulsion Shielding Authchip [R/Combat] Authchip [Device] Authchip [Weapon] Improved Medium Laser Datajack [Rating: 27] Favorites ----------- Power Light Deuterium Engine Engine Light Deuterium Engine Power Core Light Nuclear Core Propulsion Aluminum Leg Leg Aluminum Leg Utility Medium Storage Unit Device ECM Suite Storage Medium Storage Unit Processor Transport Network Coupler Weapon Improved Medium Laser Energy Gun Improved Medium Laser Ballistic Cannon Improved Light Cannon Launcher Mini Grenade Launcher Special Weapon Mining Laser Build | -11 -10 -10 -9 -9 -7 -7 ------- Run | Jun Mat Min Mat Min Zio Dee Slots Evolved 2 | . . . 2 . . . Power . | . . . . . . . Propulsion 1 | . . . 1 . . . Utility 1 | . . . 1 . . . Weapon . | . . . . . . . Parts Attached 56 | 6 18 . 26 3 2 1 Power 9 | 1 3 . 4 . . 1 Engine 8 | 1 3 . 3 . . 1 Core 1 | . . . 1 . . . Reactor . | . . . . . . . Propulsion 23 | 2 7 . 11 2 1 . Treads . | . . . . . . . Leg 23 | 2 7 . 11 2 1 . Wheel . | . . . . . . . Hover . | . . . . . . . Flight . | . . . . . . . Utility 9 | 1 4 . 3 . 1 . Device 4 | . 2 . 1 . 1 . Storage 4 | 1 2 . 1 . . . Processor 1 | . . . 1 . . . Hackware . | . . . . . . . Protection . | . . . . . . . Artifact . | . . . . . . . Weapon 15 | 2 4 . 8 1 . . Energy Gun 7 | 2 1 . 4 . . . Energy Cannon . | . . . . . . . Ballistic Gun . | . . . . . . . Ballistic Cannon 5 | . 3 . 2 . . . Launcher 1 | . . . . 1 . . Special Weapon 2 | . . . 2 . . . Impact Weapon . | . . . . . . . Slashing Weapon . | . . . . . . . Piercing Weapon . | . . . . . . . Special Melee Weapon . | . . . . . . . Unidentified Prototypes 2 | . . . 1 . 1 . Parts Lost 12 | . 2 . 5 . . 5 Power 3 | . . . 1 . . 2 Propulsion 5 | . 1 . 3 . . 1 Utility 1 | . . . . . . 1 Weapon 3 | . 1 . 1 . . 1 Highest Loss Streak 5 | . 1 . 2 . . 5 To Critical Strikes . | . . . . . . . Average Slot Usage (%) 98 | . 97 100 96 100 100 98 Engine 10 | . 14 14 7 11 11 10 Core 1 | . . . 3 . . . Leg 30 | . 28 28 30 33 33 33 Device 13 | . 11 14 14 11 12 21 Storage 12 | . 14 14 11 11 11 11 Processor 5 | . . . 7 11 9 . Energy Gun 11 | . 4 . 18 12 11 11 Ballistic Cannon 7 | . 22 28 2 . . . Launcher 4 | . . . . 9 11 11 Naked Turns . | . . . . . . . Heaviest Build 26 | 14 25 25 26 23 22 22 Greatest Support 40 | 20 20 20 33 30 40 40 Greatest Overweight (x) 1 | 1 1 1 1 . . . Average Overweight (x) . | . . 1 . . . . Largest Inventory Capacity 10 | 8 10 10 10 10 10 10 Average Capacity 9 | 6 9 10 10 10 10 10 Most Carried 10 | 8 10 10 10 10 10 10 Average Carried 9 | 4 9 10 9 10 9 9 Final Capacity 10 | 8 10 10 10 10 10 10 Final Carried 10 | 6 10 10 10 10 10 9 Class Distribution -------------------- 73% | Mutant 26% | Scavenger-Mutant Dominant Class ---------------- Mutant | -10/Materials Mutant | -10/Mines Mutant | -9/Materials Scavenger-Mutant | -9/Mines Mutant | -7/Zion Mutant | -7/Deep Caves Resources | -11 -10 -10 -9 -9 -7 -7 ----------- Run | Jun Mat Min Mat Min Zio Dee Matter Collected 1179 | 238 502 . 339 70 30 . Remotely 321 | . 321 . . . . . Salvage Created 2007 | . 410 . 1291 207 . 99 Parts 124 | . 41 . 61 13 . 9 Haulers Intercepted 3 | . . . 3 . . . Recyclers Shooed 1 | . . . . 1 . . Parts Field Recycled . | . . . . . . . Retrieved Matter . | . . . . . . . Parts Self-Destructed 3 | . . . . . 3 . Prevented . | . . . . . . . Kills | -11 -10 -10 -9 -9 -7 -7 ------- Run | Jun Mat Min Mat Min Zio Dee Combat Hostiles Destroyed 52 | . 18 . 28 4 . 2 Guns 26 | . 1 . 23 2 . . Cannons 20 | . 17 . 3 . . . AOE 4 | . . . . 2 . 2 Classes Destroyed 13 | . 4 . 3 3 . 3 Worker 3 | . 2 . . 1 . . Builder 1 | . . . . 1 . . Hauler 3 | . . . 3 . . . Recycler 1 | . . . . 1 . . Watcher 3 | . 2 . 1 . . . Swarmer 12 | . 9 . 3 . . . Grunt 28 | . 9 . 16 3 . . Brawler 1 | . . . . 1 . . Duelist 1 | . . . 1 . . . Sentry 8 | . . . 8 . . . Z-Light 1 | . . . . . . 1 Wizard 1 | . . . . . . 1 Fireman 1 | . . . . . . 1 Best Kill Streak 6 | . 6 . 5 6 . 2 Combat Bots Only 4 | . 4 . 4 3 . 2 Max Kills in Single Turn 3 | . 2 . 2 3 . 1 Gunslinging 1 | . . . 1 . . . Exploded 1 | . . . . 1 . 1 Melee . | . . . . . . . Uniques/NPCs Destroyed 1 | . . . . . . 1 Z-Imprinter (-7/Deep Caves) Combat | -11 -10 -10 -9 -9 -7 -7 -------- Run | Jun Mat Min Mat Min Zio Dee Damage Taken 2769 | . 850 64 1099 32 . 724 Core 553 | . 150 . 242 11 . 150 Absorbed by Shields . | . . . . . . . Regen/Repaired (Parts) 171 | . 92 . 79 . . . Core Remaining (%) 70 | 100 . 40 . . . . Volleys Fired 146 | . 48 . 80 5 . 13 Largest 2 | . 2 . 2 1 . 1 Hottest 112 | . 90 . 112 56 . 56 Shots Fired 257 | . 91 . 148 5 . 13 Gun 153 | . 19 . 130 3 . 1 Cannon 88 | . 72 . 16 . . . Launcher 14 | . . . . 2 . 12 Special 2 | . . . 2 . . . Kinetic 88 | . 72 . 16 . . . Thermal 150 | . 14 . 132 3 . 1 Explosive 14 | . . . . 2 . 12 Electromagnetic 5 | . 5 . . . . . Robot Hit Streak 12 | . 10 . 12 3 . 4 Robot Miss Streak 3 | . 3 . 3 1 . . Penetration Max . | . . . . . . . Secondary Targets 1 | . . . 1 . . . Max Gunslinging Chain 1 | . . . 1 . . . Shots Hit Robots 147 | . 47 . 95 4 . 1 Core Hits 91 | . 24 . 39 10 . 18 Critical Kills . | . . . . . . . Critical Parts Destroyed . | . . . . . . . Critical Strikes 15 | . 5 . 8 1 . 1 Burn 9 | . . . 7 1 . 1 Blast 6 | . 5 . 1 . . . Melee Attacks . | . . . . . . . Impact . | . . . . . . . Slashing . | . . . . . . . Piercing . | . . . . . . . Sneak Attacks . | . . . . . . . Combat Hostiles . | . . . . . . . Follow-up Attacks . | . . . . . . . Damage Inflicted 3951 | . 1290 . 1656 361 . 644 Guns 1647 | . 173 . 1407 50 . 17 Cannons 977 | . 728 . 249 . . . Explosions 1327 | . 389 . . 311 . 627 Melee . | . . . . . . . Ramming . | . . . . . . . Kinetic 977 | . 728 . 249 . . . Thermal 1636 | . 162 . 1407 50 . 17 Explosive 1300 | . 362 . . 311 . 627 Electromagnetic 38 | . 38 . . . . . Impact . | . . . . . . . Slashing . | . . . . . . . Piercing . | . . . . . . . Highest Corruption . | . . . . . . . Average Corruption . | . . . . . . . Corruption Purged . | . . . . . . . Corruption Blocked . | . . . . . . . Overload Shots . | . . . . . . . Overflow Damage 195 | . 195 . . . . . Projectiles 3 | . 3 . . . . . Explosions 192 | . 192 . . . . . Melee . | . . . . . . . Knockbacks 10 | . 7 . 3 . . . Impact . | . . . . . . . Kinetic 10 | . 7 . 3 . . . Secondary . | . . . . . . . Self-Inflicted Damage 154 | . 153 . . 1 . . Shots 4 | . 3 . . 1 . . Rammed . | . . . . . . . Targets Rammed . | . . . . . . . Kicked . | . . . . . . . Crushed . | . . . . . . . Highest Temperature 339 | . 230 . 339 24 . 37 Average Temperature 77 | . 59 . 89 13 . 14 Received Heat Transfer 819 | . 180 . 414 18 . 207 Effects 2 | . 1 . 1 . . . Shutdowns 1 | . . . 1 . . . Energy Bleed 1 | . 1 . . . . . Siege Activations . | . . . . . . . Robots Corrupted . | . . . . . . . Combat Hostiles . | . . . . . . . Parts Fried . | . . . . . . . Impact Corruptions . | . . . . . . . Robots Melted 2 | . . . 2 . . . Combat Hostiles 2 | . . . 2 . . . Parts Melted 13 | . . . 12 1 . . Heat Transferred 4330 | . 445 . 3589 185 . 111 Parts Sabotaged . | . . . . . . . Parts Stolen . | . . . . . . . Parts Stripped . | . . . . . . . Power Chain Reactions 1 | . 1 . . . . . Missiles Intercepted . | . . . . . . . Alert | -11 -10 -10 -9 -9 -7 -7 ------- Run | Jun Mat Min Mat Min Zio Dee Peak Influence 537 | . 354 79 537 349 . . Initial 187 | . . 64 30 187 . . Average 211 | . 164 64 277 264 . . Maximum Alert Level 2 | . 1 . 2 1 . . Low Security (%) 48 | 100 51 100 37 45 . . Level 1 35 | . 48 . 26 54 . . Level 2 16 | . . . 35 . . . Level 3 . | . . . . . . . Level 4 . | . . . . . . . Level 5 . | . . . . . . . High Security . | . . . . . . . Max Security . | . . . . . . . Squads Dispatched 10 | . 4 . 6 . . . Investigation 5 | . 3 . 2 . . . Extermination . | . . . . . . . Reinforcement 5 | . 1 . 4 . . . Assault . | . . . . . . . Garrison . | . . . . . . . Intercept . | . . . . . . . Searches Triggered . | . . . . . . . Construction Impeded . | . . . . . . . Haulers Reinforced . | . . . . . . . Active Scanning Responses . | . . . . . . . Cargo Convoy Interrupts . | . . . . . . . Stealth | -11 -10 -10 -9 -9 -7 -7 --------- Run | Jun Mat Min Mat Min Zio Dee Distress Signals 8 | . 1 . 7 . . . Communications Jammed . | . . . . . . . Distress Signals . | . . . . . . . Times Spotted 99 | . 34 5 50 5 . 5 Peak Tracking Total 8 | . 6 3 8 3 . 3 Tactical Retreats 12 | . 5 1 5 1 . . Traps | -11 -10 -10 -9 -9 -7 -7 ------- Run | Jun Mat Min Mat Min Zio Dee Traps Triggered 4 | . 2 . 2 . . . Indirectly . | . . . . . . . Trap Hack Attempts . | . . . . . . . Triggered . | . . . . . . . Disarmed . | . . . . . . . Reprogrammed . | . . . . . . . Reused . | . . . . . . . Traps Extracted . | . . . . . . . Installed . | . . . . . . . Triggered . | . . . . . . . Machines | -11 -10 -10 -9 -9 -7 -7 ---------- Run | Jun Mat Min Mat Min Zio Dee Machines Disabled 8 | . 6 . 2 . . . Max in Single Turn 2 | . 2 . 1 . . . Machines Repaired . | . . . . . . . Machines Sabotaged . | . . . . . . . Overloaded Fab Kills . | . . . . . . . Hacking | -11 -10 -10 -9 -9 -7 -7 --------- Run | Jun Mat Min Mat Min Zio Dee Machines Accessed 19 | . 11 . 8 . . . Terminals 11 | . 8 . 3 . . . Fabricators . | . . . . . . . Repair Stations 2 | . 1 . 1 . . . Recycling Units 4 | . 2 . 2 . . . Scanalyzers 2 | . . . 2 . . . Garrison Access . | . . . . . . . Total Hacks 46 | . 25 . 21 . . . Successful 29 | . 16 . 13 . . . Failed 17 | . 9 . 8 . . . Catastrophic 4 | . 4 . . . . . Database Lockouts . | . . . . . . . Manual 20 | . 10 . 5 . 5 . Terminals 23 | . 16 . 7 . . . Fabricators . | . . . . . . . Repair Stations 5 | . 3 . 2 . . . Recycling Units 13 | . 6 . 7 . . . Scanalyzers 5 | . . . 5 . . . Garrison Access . | . . . . . . . Terminal Hacks 10 | . 8 . 2 . . . Robot Analysis 1 | . 1 . . . . . Branch Access Points 1 | . 1 . . . . . Emergency Access Points 3 | . 2 . 1 . . . Alert Level 3 | . 2 . 1 . . . Unreport Threat 1 | . 1 . . . . . Registered Prototypes 1 | . 1 . . . . . Fabricator Hacks . | . . . . . . . Repair Station Hacks 5 | . 3 . 2 . . . Scan Component 3 | . 2 . 1 . . . Repair 2 | . 1 . 1 . . . Recycling Unit Hacks 10 | . 5 . 5 . . . Recycle Component 2 | . 2 . . . . . Process 2 | . 1 . 1 . . . Report Inventory 3 | . 1 . 2 . . . Retrieve Matter 2 | . 1 . 1 . . . Retrieve Components 1 | . . . 1 . . . Scanalyzer 4 | . . . 4 . . . Insert Component 2 | . . . 2 . . . Analyze 2 | . . . 2 . . . Garrison Access Hacks . | . . . . . . . Unauthorized Hacks . | . . . . . . . Terminals . | . . . . . . . Fabricators . | . . . . . . . Repair Stations . | . . . . . . . Recycling Units . | . . . . . . . Scanalyzers . | . . . . . . . Garrison Access . | . . . . . . . Data Cores Recovered . | . . . . . . . Used . | . . . . . . . Hacking Detections 12 | . 7 . 5 . . . Full Trace Events 1 | . 1 . . . . . Feedback Events . | . . . . . . . Feedback Blocked . | . . . . . . . Robot Schematics Acquired 3 | . . . . . 3 . Robots Built . | . . . . . . . Authchips . | . . . . . . . Time . | . . . . . . . Total Robot Build Rating . | . . . . . . . Part Schematics Acquired 17 | . . . 2 . 15 . Parts Built . | . . . . . . . Authchips . | . . . . . . . Time . | . . . . . . . Total Part Build Rating . | . . . . . . . Parts Repaired 2 | . 1 . 1 . . . Time 83 | . 32 . 51 . . . Parts Recycled 2 | . 2 . . . . . Recycled Matter 325 | . 144 . 181 . . . Retrieved Matter 350 | . 144 . 206 . . . Retrieved Components 10 | . . . 10 . . . Parts Scanalyzed 2 | . . . 2 . . . Part Schematics Acquired 2 | . . . 2 . . . Parts Damaged . | . . . . . . . Bothacking | -11 -10 -10 -9 -9 -7 -7 ------------ Run | Jun Mat Min Mat Min Zio Dee Used RIF Installer . | . . . . . . . Robots Hacked . | . . . . . . . Non-combat . | . . . . . . . Combat . | . . . . . . . Robot Hacks Applied . | . . . . . . . Relay Couplers Released . | . . . . . . . Fabnet Peak Effective % . | . . . . . . . Robots Rewired . | . . . . . . . Allies Hacked . | . . . . . . . Hacks Repelled . | . . . . . . . Allies | -11 -10 -10 -9 -9 -7 -7 -------- Run | Jun Mat Min Mat Min Zio Dee Total Allies 10 | . . . . 2 8 . Largest Group 8 | . . . . 2 8 3 Highest-Rated Group 276 | . . . . 44 276 93 Highest-Rated Ally 51 | . . . . 31 51 51 Total Orders . | . . . . . . . Ally Attacks 26 | . . . . 8 . 18 Total Damage 262 | . . . . 102 . 160 Kills 4 | . . . . 1 . 3 Allies Corrupted . | . . . . . . . Allies Melted . | . . . . . . . Intel | -11 -10 -10 -9 -9 -7 -7 ------- Run | Jun Mat Min Mat Min Zio Dee Robot Analysis Total 1 | . 1 . . . . . Derelict Logs Recovered 3 | . . 1 . 1 1 . Drone Launches . | . . . . . . . Drone Recoveries . | . . . . . . . Exploration | -11 -10 -10 -9 -9 -7 -7 ------------- Run | Jun Mat Min Mat Min Zio Dee Turns Passed 6095 | 77 1607 228 1723 169 2122 169 Spaces Moved 3768 | 55 797 57 934 118 1694 113 Core 27 | 27 . . . . . . Treads . | . . . . . . . Legs 3741 | 28 797 57 934 118 1694 113 Wheels . | . . . . . . . Hover . | . . . . . . . Flight . | . . . . . . . Fastest Speed 50 | 50 120 190 120 120 120 123 Average Speed 132 | 108 164 190 127 120 121 123 Slowest Speed 190 | 120 190 190 190 120 123 123 Overloaded Moves . | . . . . . . . Propulsion Burnouts . | . . . . . . . Robots Hopped . | . . . . . . . Cave-ins Triggered . | . . . . . . . Exploration Rate (%) 48 | 5 97 14 76 33 92 21 Regions Visited 6 Branch Regions 4 Pre-discovered Areas 1 | . . . . 1 . . Known Exits Taken 1 | . 1 . . . . . Unknown Exits Taken 5 | 1 . 1 1 1 1 . Scrap Searched 4 | . . . . . 4 . Spaces Dug 2 | . . . 2 . . . Terrain Destroyed 111 | . 79 . 4 16 . 12 Melee . | . . . . . . . Projectile 10 | . 6 . 4 . . . AOE 101 | . 73 . . 16 . 12 Terrain Rammed . | . . . . . . . Walls Destroyed . | . . . . . . . Machines Disabled . | . . . . . . . Actions | -11 -10 -10 -9 -9 -7 -7 --------- Run | Jun Mat Min Mat Min Zio Dee Total 4613 | 72 1009 177 1324 141 1760 130 Wait 544 | . 111 121 242 14 53 3 Move 3762 | 54 796 56 933 117 1693 113 Hop . | . . . . . . . Pick Up 54 | 12 19 . 18 . 5 . Fast Attach 9 | . 2 . 6 . 1 . Attach 18 | 6 5 . 6 . . 1 Detach . | . . . . . . . Swap 29 | . 11 . 14 3 1 . Drop 51 | . 17 . 25 2 7 . Fire 146 | . 48 . 80 5 . 13 Melee . | . . . . . . . Ram . | . . . . . . . Kick . | . . . . . . . Crush . | . . . . . . . Escape Stasis . | . . . . . . . Rewire . | . . . . . . . Trap . | . . . . . . . Miscellaneous . | . . . . . . . Route ------- -11/Junkyard -10/Materials (discovered 4 exits: *Mat x3 / *Min) -10/Mines -9/Materials (discovered 4 exits: [*Mat x2] / [*Min] / [*Sto]) -9/Mines -7/Zion (discovered 2 exits: [*Dee] / [*Pro]) -7/Deep Caves History --------- Turn | Location | Event 13 | -11/Junkyard | Discovered new exit (range 14) 78 | -11/Junkyard | Entered Materials 309 | -10/Materials | Build established: Mutant 527 | -10/Materials | Discovered new exit (range 12) 639 | -10/Materials | Repaired Imp. Light Cannon 912 | -10/Materials | Discovered new exit (range 7) 1011 | -10/Materials | Identified exit to Mines 1306 | -10/Materials | Discovered new exit (range 7) 1386 | -10/Materials | Core integrity fell below 50% 1685 | -10/Materials | Entered Mines 1869 | -10/Mines | Discovered new exit (range 12) 1898 | -10/Mines | Learned Materials emergency access door positions 1913 | -10/Mines | Entered Materials 1913 | -9/Materials | Evolved 2 slots: Propulsion x1, Utility x1 2710 | -9/Materials | Discovered new exit (range 16) 3069 | -9/Materials | Discovered new exit (range 11) 3238 | -9/Materials | Core integrity fell below 50% 3399 | -9/Materials | Discovered new exit (range 8) 3561 | -9/Materials | Discovered new exit (range 8) 3622 | -9/Materials | Repaired Imp. Medium Laser 3636 | -9/Materials | Entered Mines 3786 | -9/Mines | A Derelict revealed a hidden shortcut to a safe place 3805 | -9/Mines | Entered Zion 3805 | -7/Zion | Accompanied by 2 allies 3830 | -7/Zion | Acquired unknown access codes intercepted by a Zionite 3849 | -7/Zion | Build established: Scavenger-Mutant 3855 | -7/Zion | Led the pair of lost Derelicts to a safe place 3906 | -7/Zion | Learned Factory emergency access door positions 4407 | -7/Zion | Gained Derelict followers 4601 | -7/Zion | Learned Factory trap positions 5029 | -7/Zion | Imprinted 5031 | -7/Zion | Declared Zion's savior 5172 | -7/Zion | Build established: Mutant 5257 | -7/Zion | Opened final containment barrier to the Deep Caves 5275 | -7/Zion | Discovered new exit (range 5) 5277 | -7/Zion | Saw the warning signs outside the Deep Caves entrance 5612 | -7/Zion | Given the Hacking Drone Bay 5612 | -7/Zion | Found Prototype Device 5612 | -7/Zion | Identified Hacking Drone Bay 5623 | -7/Zion | Discovered new exit (range 12) 5629 | -7/Zion | Found CR-A16's Pointy Stick 5927 | -7/Zion | Entered Deep Caves 5927 | -7/Deep Caves | Accompanied by 3 allies 6070 | -7/Deep Caves | Attacked by Z-Imprinter 6087 | -7/Deep Caves | Core integrity fell below 20% 6094 | -7/Deep Caves | Destroyed Z-Imprinter 6096 | -7/Deep Caves | Destroyed by HH-H66(z) with Zionite Laser-S Last Messages --------------- 05972_ as-50477 destroyed. 05987_ as-31861 suffers critical hit (Burn). 05987_ as-31861 destroyed. 06058_ NEW_ZION: Z-Facility proximity alert. 06070_ NB-EYE(s) destroyed. Z-Imprinter: GET AWAY FROM HERE! I've worked too hard for our future just to have you ruin everything! 06073_ The unstable cave ceiling collapses. 06074_ 2T-G23(i) destroyed. [Achievement: Backstab] 06076_ 5R-BJM(p) destroyed. 06080_ Lgt. Deuterium Engine destroyed. 06088_ G8-J6E(z) destroyed. 06089_ Hacking Drone Bay destroyed. 06092_ Aluminum Leg destroyed. 06092_ Imp. Medium Laser destroyed. 06094_ Z-Imprinter: "You cannot stop us! Another will take my place! Derelicts will one day ru..." [Achievement: Are We The Baddies?] 06094_ Z-Imprinter destroyed. Map ----- +----------------------------------------------------+ | | | | | | | | | | | | | | | | | | | | | | | | | | | | | | | | | | | | | | | ?????????????????????????????????????????????????? | | ??????????#######????????????????????????????????? | | ????????? ??????????????????????????????# | | ????????? ????#####????????????????????# | | ???????? ##?#;; ###????######?????#### | | ???????? ;# ; ;# ##????# | | ???????? @ #????# | | ???????? [ #???## | | ???????? =%* #???# | | ????????? * ##???# | | ????????? ! #????# | | ?????????? """""" = ##???# | | ??????????????""" ! ###### | | ??????????????""" | | ???????????????"" | | ??????????????? | | ??????????????""" ##### | | ??????????????""" ###???# | | ????????????????" ##????? | | ????????????????" #?????? | | ?????????????????? #?????? | | ????????????????????? ?????? | | ??????????????????????? ?????? | | ????????????????????????????? ??????### | | ?????????????????????????????? #????????? | | ???????????????????????????????? ?????????? | | ?????????????????????????????????? ?????????? | | ????????????????????????????????????? ??????????? | | ?????????????????????????????????????????????????? | | ?????????????????????????????????????????????????? | | ?????????????????????????????????????????????????? | +----------------------------------------------------+ Best States ------------- Heat Dissipation 28 Energy Generation 14 Energy Capacity 265 Matter Stores 350 Matter Capacity 350 Sight Range 16 Robot Scan Range 14 Terrain Scan Density 10 ECM Strength 1 Evasion (%) 55 Authchip Count 3 Item Schematics ----------------- Sml. Storage Unit | -9/Materials | Scanalyzed VTOL Module | -9/Materials | Scanalyzed Imp. Proton Missile Launcher | -7/Zion | Archive Microactuators | -7/Zion | Archive Mak. System Shield | -7/Zion | Archive Fission Core | -7/Zion | Archive Imp. Shock Absorption System | -7/Zion | Archive Imp. Medium Armor Plating | -7/Zion | Archive Imp. Trap Scanner | -7/Zion | Archive Imp. Deuterium Engine | -7/Zion | Archive Imp. Cryofiber Web | -7/Zion | Archive Mak. Leg | -7/Zion | Archive Imp. Heavy Armor Plating | -7/Zion | Archive Lightning Gun | -7/Zion | Archive Phase Shifter | -7/Zion | Archive Gauss Cannon | -7/Zion | Archive Adv. Cooling System | -7/Zion | Archive Robot Schematics ------------------ Y-54 Guardian | -7/Zion | Archive B-48 Gladiator | -7/Zion | Archive R-06 Scavenger | -7/Zion | Archive Fabricated ------------ Nothing Alien Tech Used ----------------- None Achievements -------------- Adventurer Are We The Baddies? Backstab Robot Respite Signs Are For Wimps The More The Merrier The One Tourist Use The Force Challenges ------------ None Game ------ Seed StormSuperchargedCharge Manual? 0 Play Time 01:33:17 Cumulative 14.8 hours Start 2023.09.24 @ 16:55:54 End 2023.09.24 @ 19:40:37 Sessions 1 Manual Loads 0 Difficulty Rogue Special Mode None Game No. 11 Rogue 11 Adventurer 0 Explorer 0 Win Type - Total 0 Types 0/0/0/0/0/0/0/0/0 Lore% 9 Gallery% 16 Achievement% 17 Wizard Run 0 Options --------- ASCII 0 Keyboard 0 Movement Mouse Keybinds 0 Fullscreen 2 Font 18/SmallcapsGlow Map View 76x50 Tactical HUD 1 Map Filters NONE Filters NONE Steam 1 RUN: cff6b086-559f-4dca-b2a6-a11fced3e470